fUSD/lending_fUSD_20250521
["ID","MTS","AMOUNT","RATE_DAILY","PERIOD"]
[361840593,1747828238479,-420.0,0.00032876,5]
[361840594,1747828238490,-420.0,0.00032876,5]
[361840595,1747828238500,-1944.05,0.00032876,5]
[361840596,1747828238510,-420.0,0.00032876,5]
[361840597,1747828238520,-420.0,0.00032876,5]
[361840598,1747828238530,-445.9,0.00032876,5]
[361840599,1747828238540,-420.0,0.00032876,5]
[361840600,1747828238550,-420.0,0.00032876,5]
[361840601,1747828238560,-420.0,0.00032876,5]
[361840602,1747828238570,-420.0,0.00032876,5]
[361840603,1747828238580,-420.0,0.00032876,5]
[361840604,1747828238589,-3204.8,0.00032876,5]
[361840605,1747828238599,-420.0,0.00032876,5]
[361840606,1747828238609,-420.0,0.00032876,5]
[361840607,1747828238619,-420.0,0.00032876,5]
[361840608,1747828238628,-420.0,0.00032876,5]
[361840609,1747828238638,-420.0,0.00032876,5]
[361840610,1747828238648,-420.0,0.00032876,5]
[361840611,1747828238658,-420.0,0.00032876,5]
[361840612,1747828238669,-420.0,0.00032876,5]
[361840613,1747828238679,-420.0,0.00032876,5]
[361840614,1747828238689,-420.0,0.00032876,5]
[361840615,1747828238699,-420.0,0.00032876,5]
[361840616,1747828238709,-420.0,0.00032876,5]
[361840617,1747828238719,-464.95,0.00032876,5]
[361840618,1747828238730,-420.0,0.00032876,5]
[361840619,1747828238739,-556.04,0.00032876,5]
[361840620,1747828238750,-420.0,0.00032876,5]
[361840621,1747828238759,-420.0,0.00032876,5]
[361840622,1747828238770,-420.0,0.00032876,5]
[361840623,1747828238779,-420.0,0.00032876,5]
[361840624,1747828238789,-420.0,0.00032876,5]
[361840625,1747828238799,-420.0,0.00032876,5]
[361840626,1747828238808,-515.39,0.00032876,5]
[361840627,1747828238818,-420.0,0.00032876,5]
[361840628,1747828238828,-536.97,0.00032876,5]
[361840629,1747828238837,-479.93,0.00032876,5]
[361840630,1747828238847,-420.0,0.00032876,5]
[361840631,1747828238857,-420.0,0.00032876,5]
[361840632,1747828238868,-549.09175762,0.00032876,5]
[361840633,1747828238878,-420.0,0.00032876,5]
[361840634,1747828238887,-420.0,0.00032876,5]
[361840635,1747828238898,-420.0,0.00032876,5]
[361840636,1747828238907,-420.0,0.00032876,5]
[361840637,1747828238917,-420.0,0.00032876,5]
[361840638,1747828238928,-420.0,0.00032876,5]
[361840639,1747828238938,-420.0,0.00032876,5]
[361840640,1747828238948,-420.0,0.00032876,5]
[361840641,1747828238958,-420.0,0.00032876,5]
[361840642,1747828238969,-420.0,0.00032876,5]
[361840643,1747828238978,-420.0,0.00032876,5]
[361840644,1747828238988,-530.52,0.00032876,5]
[361840645,1747828238997,-420.0,0.00032876,5]
[361840646,1747828239007,-420.0,0.00032876,5]
[361840647,1747828239017,-420.0,0.00032876,5]
[361840648,1747828239026,-420.0,0.00032876,5]
[361840649,1747828239037,-420.0,0.00032876,5]
[361840650,1747828239046,-564.06,0.00032876,5]
[361840651,1747828239056,-420.0,0.00032876,5]
[361840652,1747828239065,-420.0,0.00032876,5]
[361840653,1747828239075,-420.0,0.00032876,5]
[361840654,1747828239087,-420.0,0.00032876,5]
[361840655,1747828239097,-511.37620639,0.00032876,5]
[361840656,1747828239107,-420.0,0.00032876,5]
[361840657,1747828239117,-420.0,0.00032876,5]
[361840658,1747828239126,-420.0,0.00032876,5]
[361840659,1747828239137,-420.0,0.00032876,2]
[361840660,1747828239147,-420.0,0.00032876,5]
[361840661,1747828239157,-420.0,0.00032876,5]
[361840662,1747828239167,-420.0,0.00032876,5]
[361840663,1747828239177,-420.0,0.00032876,5]
[361840664,1747828239187,-420.0,0.00032876,5]
[361840665,1747828239196,-420.0,0.00032876,5]
[361840666,1747828239206,-420.0,0.00032876,5]
[361840667,1747828239215,-420.0,0.00032876,5]
[361840668,1747828239225,-420.0,0.00032876,5]
[361840669,1747828239234,-420.0,0.00032876,5]
[361840670,1747828239244,-420.0,0.00032876,5]
[361840671,1747828239255,-420.0,0.00032876,5]
[361840672,1747828239265,-260.58012619,0.00032876,5]
[361840673,1747828239275,-420.0,0.00032876,5]
[361840674,1747828239284,-380.0,0.00032876,5]
[361840675,1747828239294,-420.0,0.00032876,5]
[361840676,1747828239303,-420.0,0.00032876,5]
[361840677,1747828239313,-1000.0,0.00032876,5]
[361840678,1747828239322,-737.12,0.00032876,5]
[361840679,1747828239332,-420.0,0.00032876,5]
[361840680,1747828239341,-532.26,0.00032876,5]
[361840681,1747828239351,-420.0,0.00032876,5]
[361840682,1747828239362,-420.0,0.00032876,5]
[361840683,1747828239371,-420.0,0.00032876,5]
[361840684,1747828239381,-420.0,0.00032876,5]
[361840685,1747828239391,-420.0,0.00032876,5]
[361840686,1747828239400,-420.0,0.00032876,5]
[361840687,1747828239410,-420.0,0.00032876,5]
[361840688,1747828239419,-544.43,0.00032876,5]
[361840689,1747828239428,-420.0,0.00032876,5]
[361840690,1747828239438,-563.54,0.00032876,5]
[361840691,1747828239448,-420.0,0.00032876,5]
[361840692,1747828239459,-420.0,0.00032876,5]
[361840693,1747828239469,-420.0,0.00032876,5]
[361840694,1747828239479,-420.0,0.00032876,5]
[361840695,1747828239488,-420.0,0.00032876,5]
[361840696,1747828239498,-420.0,0.00032876,5]
[361840697,1747828239508,-420.0,0.00032876,5]
[361840698,1747828239518,-420.0,0.00032876,5]
[361840699,1747828239527,-420.0,0.00032876,5]
[361840700,1747828239537,-420.0,0.00032876,5]
[361840701,1747828239547,-498.84,0.00032876,5]
[361840702,1747828239556,-420.0,0.00032876,5]
[361840703,1747828239565,-5048.72,0.00032876,5]
[361840704,1747828239575,-549.83,0.00032876,5]
[361840705,1747828239585,-403.58703708,0.00032876,5]
[361840706,1747828239595,-420.0,0.00032876,5]
[361840707,1747828239605,-420.0,0.00032876,5]
[361840708,1747828239614,-253.53457553,0.00032876,5]
[361840709,1747828239631,-166.46542447,0.00032876,5]
[361840710,1747828239641,-420.0,0.00032876,5]
[361840711,1747828239651,-420.0,0.00032876,5]
[361840712,1747828239662,-880.48,0.00032876,5]
[361840713,1747828239671,-420.0,0.00032876,5]
[361840714,1747828239681,-420.0,0.00032876,5]
[361840715,1747828239691,-155.0,0.00032876,2]
[361840716,1747828239701,-420.0,0.00032876,5]
[361840717,1747828239711,-420.0,0.00032876,5]
[361840718,1747828239720,-489.0,0.00032876,5]
[361840719,1747828239730,-420.0,0.00032876,5]
[361840720,1747828239739,-420.0,0.00032876,5]
[361840721,1747828239748,-420.0,0.00032876,5]
[361840722,1747828239758,-420.0,0.00032876,5]
[361840723,1747828239767,-23223.65290566,0.00032976,2]
[361840724,1747828239780,-582.68101033,0.00032976,2]
[361840725,1747828239846,-177.30303458,0.00032712,2]
[361840726,1747828239856,-93.66608401,0.00032976,2]
[361840727,1747828239867,-268.7179,0.0003305,2]
[361840728,1747828239876,-19.20648349,0.0003314,2]
[361840729,1747828239888,-147.86351651,0.0003314,2]
[361840730,1747828239898,-641.58,0.0003314,2]
[361840731,1747828239908,-500.0,0.00033149,5]
[361840732,1747828239919,-500.0,0.00033149,5]
[361840733,1747828239929,-420.0,0.0003315,5]
[361840734,1747828239939,-420.97,0.0003315,5]
[361840735,1747828239949,-150.90323496,0.0003315,5]
[361840736,1747828239958,-420.0,0.0003315,5]
[361840737,1747828239969,-233.31,0.0003315,5]
[361840738,1747828239978,-304.42,0.0003315,5]
[361840739,1747828239988,-420.0,0.0003315,5]
[361840740,1747828239998,-420.0,0.0003315,5]
[361840741,1747828240009,-211.25,0.0003315,5]
[361840742,1747828240018,-33.75324853,0.0003315,5]
[361840743,1747828240034,-410.64082094,0.0003315,5]
[361840744,1747828240044,-249.35917906,0.0003315,5]
[361840745,1747828240066,-39.93082094,0.0003315,5]
[361840746,1747828240076,-420.0,0.0003315,5]
[361840747,1747828240089,-321.28,0.0003315,5]
[361840748,1747828240099,-276.58,0.0003315,5]
[361840749,1747828240109,-412.57,0.0003315,5]
[361840751,1747828240119,-420.0,0.0003315,5]
[361840753,1747828240130,-420.0,0.0003315,5]
[361840755,1747828240140,-248.97,0.0003315,5]
[361840756,1747828240149,-420.0,0.0003315,5]
[361840757,1747828240160,-243.74,0.0003315,5]
[361840758,1747828240347,-420.0,0.0003315,5]
[361840759,1747828240359,-567.46,0.0003315,5]
[361840760,1747828240368,-420.0,0.0003315,5]
[361840761,1747828240378,-420.0,0.0003315,5]
[361840762,1747828240388,-312.29,0.0003315,5]
[361840763,1747828240398,-420.0,0.0003315,5]
[361840764,1747828240408,-420.0,0.0003315,5]
[361840765,1747828240417,-374.06,0.0003315,5]
[361840766,1747828240427,-503.66,0.0003315,5]
[361840767,1747828240436,-420.0,0.0003315,5]
[361840768,1747828240447,-646.58,0.0003315,5]
[361840769,1747828240456,-420.0,0.0003315,5]
[361840770,1747828240467,-420.0,0.0003315,5]
[361840771,1747828240476,-420.0,0.0003315,5]
[361840772,1747828240485,-420.0,0.0003315,5]
[361840773,1747828240495,-213.02,0.0003315,5]
[361840774,1747828240505,-528.94,0.0003315,5]
[361840775,1747828240515,-420.0,0.0003315,5]
[361840776,1747828240525,-186.58,0.0003315,5]
[361840777,1747828240535,-420.0,0.0003315,5]
[361840778,1747828240545,-420.0,0.0003315,5]
[361840779,1747828240554,-420.0,0.0003315,5]
[361840780,1747828240564,-420.0,0.0003315,5]
[361840781,1747828240573,-162.64,0.0003315,5]
[361840782,1747828240583,-420.0,0.0003315,5]
[361840783,1747828240593,-834.6,0.0003315,5]
[361840784,1747828240603,-182.63,0.0003315,5]
[361840785,1747828240612,-317.21,0.0003315,5]
[361840786,1747828240621,-420.0,0.0003315,5]
[361840787,1747828240632,-420.0,0.0003315,5]
[361840788,1747828240642,-420.0,0.0003315,5]
[361840789,1747828240651,-420.0,0.0003315,5]
[361840790,1747828240662,-420.0,0.0003315,5]
[361840791,1747828240672,-564.85,0.0003315,5]
[361840792,1747828240682,-420.0,0.0003315,5]
[361840793,1747828240691,-524.8,0.0003315,5]
[361840794,1747828240701,-186.57,0.0003315,5]
[361840795,1747828240711,-420.0,0.0003315,5]
[361840796,1747828240721,-420.0,0.0003315,5]
[361840797,1747828240731,-420.0,0.0003315,5]
[361840798,1747828240741,-186.4,0.0003315,5]
[361840799,1747828240750,-1944.05,0.0003315,5]
[361840800,1747828240760,-44.88459556,0.0003315,5]
[361840801,1747828240886,-401.01540444,0.0003315,5]
[361840802,1747828240897,-420.0,0.0003315,5]
[361840803,1747828240906,-420.0,0.0003315,5]
[361840804,1747828240917,-276.9,0.0003315,5]
[361840805,1747828240926,-1024.98737261,0.0003315,5]
[361840813,1747828242773,-715.23,0.00032876,5]
[361840814,1747828242783,-161.28,0.00032876,5]
[361840815,1747828242793,-1821.26798634,0.0003315,5]
[361840816,1747828242813,-358.54464105,0.0003315,5]
[361840817,1747828242826,-100.70855545,0.0003315,5]
[361840818,1747828242840,-150.07144455,0.0003315,5]
[361840819,1747828242850,-231.97,0.0003315,5]
[361840820,1747828242860,-159.501556,0.0003315,5]
[361840821,1747828242987,-287.408444,0.0003315,5]
[361840822,1747828242998,-420.0,0.0003315,5]
[361840823,1747828243008,-420.0,0.0003315,5]
[361840824,1747828243019,-420.0,0.0003315,5]
[361840825,1747828243029,-420.0,0.0003315,5]
[361840826,1747828243039,-420.0,0.0003315,5]
[361840827,1747828243051,-420.0,0.0003315,5]
[361840828,1747828243062,-375.77,0.0003315,5]
[361840829,1747828243072,-420.0,0.0003315,5]
[361840831,1747828243083,-154.65,0.0003315,5]
[361840833,1747828243096,-420.0,0.0003315,5]
[361840835,1747828243107,-420.0,0.0003315,5]
[361840837,1747828243117,-420.0,0.0003315,5]
[361840839,1747828243128,-350.09,0.0003315,5]
[361840840,1747828243138,-420.0,0.0003315,5]
[361840841,1747828243148,-557.5,0.0003315,5]
[361840842,1747828243158,-368.03,0.0003315,5]
[361840843,1747828243170,-520.2,0.0003315,5]
[361840844,1747828243180,-420.0,0.0003315,5]
[361840845,1747828243190,-420.0,0.0003315,5]
[361840846,1747828243200,-420.0,0.0003315,5]
[361840847,1747828243210,-420.0,0.0003315,5]
[361840848,1747828243220,-420.0,0.0003315,5]
[361840849,1747828243229,-213.04,0.0003315,5]
[361840850,1747828243241,-432.51,0.0003315,5]
[361840851,1747828243252,-436.92,0.0003315,5]
[361840852,1747828243262,-420.0,0.0003315,5]
[361840854,1747828243272,-420.0,0.0003315,5]
[361840856,1747828243282,-420.0,0.0003315,5]
[361840858,1747828243292,-420.0,0.0003315,2]
[361840860,1747828243302,-420.0,0.0003315,5]
[361840862,1747828243311,-222.2,0.0003315,5]
[361840864,1747828243321,-420.0,0.0003315,5]
[361840866,1747828243332,-196.38,0.0003315,5]
[361840868,1747828243342,-420.0,0.0003315,5]
[361840871,1747828243358,-420.0,0.0003315,5]
[361840873,1747828243368,-420.0,0.0003315,5]
[361840875,1747828243378,-420.0,0.0003315,5]
[361840877,1747828243388,-420.0,0.0003315,5]
[361840879,1747828243398,-207.9083404,0.0003315,5]
[361840881,1747828243408,-420.0,0.0003315,5]
[361840883,1747828243419,-420.0,0.0003315,5]
[361840885,1747828243428,-420.0,0.0003315,5]
[361840889,1747828243439,-737.12,0.0003315,5]
[361840892,1747828243449,-420.0,0.0003315,5]
[361840895,1747828243459,-420.0,0.0003315,5]
[361840898,1747828243469,-420.0,0.0003315,5]
[361840902,1747828243480,-420.0,0.0003315,5]
[361840905,1747828243490,-420.0,0.0003315,5]
[361840908,1747828243501,-557.98,0.0003315,5]
[361840911,1747828243513,-420.0,0.0003315,5]
[361840914,1747828243524,-178.54,0.0003315,5]
[361840916,1747828243535,-420.0,0.0003315,5]
[361840918,1747828243545,-285.47,0.0003315,5]
[361840920,1747828243556,-420.0,0.0003315,5]
[361840922,1747828243566,-420.0,0.0003315,5]
[361840924,1747828243577,-420.0,0.0003315,5]
[361840926,1747828243587,-321.17,0.0003315,5]
[361840928,1747828243598,-420.0,0.0003315,5]
[361840930,1747828243609,-420.0,0.0003315,5]
[361840932,1747828243619,-420.0,0.0003315,5]
[361840934,1747828243630,-5048.72,0.0003315,5]
[361840937,1747828243641,-420.0,0.0003315,5]
[361840939,1747828243654,-420.0,0.0003315,5]
[361840941,1747828243667,-420.0,0.0003315,5]
[361840943,1747828243678,-880.48,0.0003315,5]
[361840945,1747828243689,-248.41,0.0003315,5]
[361840947,1747828243700,-224.36,0.0003315,5]
[361840949,1747828243711,-420.0,0.0003315,5]
[361840951,1747828243722,-420.0,0.0003315,5]
[361840953,1747828243733,-420.0,0.0003315,5]
[361840955,1747828243743,-420.0,0.0003315,5]
[361840957,1747828243754,-491.15,0.0003315,5]
[361840959,1747828243765,-715.23,0.0003315,5]
[361840961,1747828243776,-1631.0,0.00033193,3]
[361840963,1747828243791,-4000.0,0.00033292,2]
[361840965,1747828243802,-433.44170338,0.00033324,2]
[361840967,1747828243813,-420.0,0.00033424,5]
[361840970,1747828243824,-420.0,0.00033424,5]
[361840972,1747828243834,-165.02,0.00033424,5]
[361840973,1747828243844,-181.52,0.00033424,5]
[361840975,1747828243855,-431.86,0.00033424,5]
[361840976,1747828243865,-420.0,0.00033424,5]
[361840977,1747828243876,-420.0,0.00033424,5]
[361840978,1747828243887,-420.0,0.00033424,5]
[361840979,1747828243900,-420.0,0.00033424,5]
[361840980,1747828243912,-420.0,0.00033424,5]
[361840981,1747828243923,-379.52101084,0.00033424,5]
[361840982,1747828243935,-420.0,0.00033424,5]
[361840983,1747828243947,-503.66,0.00033424,5]
[361840984,1747828243959,-477.96,0.00033424,5]
[361840985,1747828243970,-646.58,0.00033424,5]
[361840986,1747828243981,-420.0,0.00033424,5]
[361840987,1747828243992,-420.0,0.00033424,5]
[361840988,1747828244003,-420.0,0.00033424,5]
[361840989,1747828244013,-420.0,0.00033424,5]
[361840990,1747828244024,-353.2,0.00033424,5]
[361840991,1747828244035,-420.0,0.00033424,5]
[361840992,1747828244045,-420.0,0.00033424,5]
[361840993,1747828244055,-420.0,0.00033424,5]
[361840994,1747828244066,-420.0,0.00033424,5]
[361840995,1747828244077,-336.33,0.00033424,5]
[361840996,1747828244088,-834.6,0.00033424,5]
[361840997,1747828244099,-420.0,0.00033424,5]
[361840998,1747828244110,-420.0,0.00033424,5]
[361840999,1747828244121,-198.69,0.00033424,5]
[361841000,1747828244134,-420.0,0.00033424,5]
[361841001,1747828244145,-420.0,0.00033424,5]
[361841002,1747828244155,-179.78,0.00033424,5]
[361841003,1747828244167,-216.55,0.00033424,5]
[361841004,1747828244179,-310.21,0.00033424,5]
[361841005,1747828244188,-535.39553367,0.00033424,5]
[361841006,1747828244199,-1944.05,0.00033424,5]
[361841007,1747828244210,-445.9,0.00033424,5]
[361841008,1747828244221,-182.29,0.00033424,5]
[361841009,1747828244232,-420.0,0.00033424,5]
[361841010,1747828244248,-3204.8,0.00033424,5]
[361841011,1747828244258,-420.0,0.00033424,5]
[361841012,1747828244268,-420.0,0.00033424,5]
[361841013,1747828244278,-219.59,0.00033424,5]
[361841014,1747828244288,-420.0,0.00033424,5]
[361841015,1747828244298,-420.0,0.00033424,5]
[361841016,1747828244308,-420.0,0.00033424,5]
[361841017,1747828244318,-420.0,0.00033424,5]
[361841018,1747828244328,-420.0,0.00033424,5]
[361841019,1747828244338,-420.0,0.00033424,5]
[361841020,1747828244348,-531.89,0.00033424,5]
[361841021,1747828244360,-420.0,0.00033424,5]
[361841022,1747828244370,-255.82,0.00033424,5]
[361841023,1747828244380,-420.0,0.00033424,5]
[361841024,1747828244394,-420.0,0.00033424,5]
[361841025,1747828244410,-339.35,0.00033424,5]
[361841026,1747828244419,-420.0,0.00033424,5]
[361841027,1747828244429,-420.0,0.00033424,5]
[361841028,1747828244439,-420.0,0.00033424,5]
[361841029,1747828244449,-344.89,0.00033424,5]
[361841030,1747828244459,-420.0,0.00033424,2]
[361841031,1747828244469,-420.0,0.00033424,5]
[361841032,1747828244479,-461.56,0.00033424,5]
[361841033,1747828244824,-324.25,0.00033424,5]
[361841034,1747828244845,-420.0,0.00033424,5]
[361841035,1747828244870,-420.0,0.00033424,5]
[361841036,1747828244882,-420.0,0.00033424,5]
[361841037,1747828244892,-420.0,0.00033424,5]
[361841038,1747828244903,-420.0,0.00033424,5]
[361841039,1747828244914,-420.0,0.00033424,5]
[361841040,1747828244925,-420.0,0.00033424,5]
[361841041,1747828244935,-737.12,0.00033424,5]
[361841042,1747828244946,-420.0,0.00033424,5]
[361841043,1747828244957,-382.06,0.00033424,5]
[361841044,1747828244967,-420.0,0.00033424,5]
[361841045,1747828244978,-420.0,0.00033424,5]
[361841046,1747828244989,-263.61,0.00033424,5]
[361841047,1747828245002,-420.0,0.00033424,5]
[361841048,1747828245014,-420.0,0.00033424,5]
[361841049,1747828245024,-170.47,0.00033424,5]
[361841050,1747828245035,-420.0,0.00033424,5]
[361841051,1747828245046,-420.0,0.00033424,5]
[361841052,1747828245057,-420.0,0.00033424,5]
[361841053,1747828245068,-420.0,0.00033424,5]
[361841054,1747828245079,-266.02,0.00033424,5]
[361841055,1747828245092,-5048.72,0.00033424,5]
[361841056,1747828245102,-420.0,0.00033424,5]
[361841057,1747828245113,-323.28,0.00033424,5]
[361841058,1747828245123,-420.0,0.00033424,5]
[361841059,1747828245135,-880.48,0.00033424,5]
[361841060,1747828245146,-420.0,0.00033424,5]
[361841061,1747828245156,-420.0,0.00033424,5]
[361841062,1747828245167,-420.0,0.00033424,5]
[361841063,1747828245178,-420.0,0.00033424,5]
[361841064,1747828245188,-715.23,0.00033424,5]
[361841065,1747828245198,-637.11,0.00033597,2]
[361841066,1747828245208,-21476.9910451,0.00033688,3]
[361841067,1747828245218,-500.0,0.00033697,5]
[361841068,1747828245228,-420.0,0.00033698,5]
[361841069,1747828245239,-420.0,0.00033698,5]
[361841070,1747828245249,-420.0,0.00033698,5]
[361841071,1747828245260,-511.91515938,0.00033698,5]
[361841072,1747828245270,-361.09,0.00033698,5]
[361841073,1747828245280,-420.0,0.00033698,5]
[361841074,1747828245290,-420.0,0.00033698,5]
[361841075,1747828245300,-420.0,0.00033698,5]
[361841076,1747828245310,-503.66,0.00033698,5]
[361841077,1747828245320,-646.58,0.00033698,5]
[361841078,1747828245329,-420.0,0.00033698,5]
[361841079,1747828245339,-420.0,0.00033698,5]
[361841080,1747828245349,-420.0,0.00033698,5]
[361841081,1747828245359,-420.0,0.00033698,5]
[361841082,1747828245369,-420.0,0.00033698,5]
[361841083,1747828245379,-420.0,0.00033698,5]
[361841084,1747828245390,-430.14,0.00033698,5]
[361841085,1747828245401,-420.0,0.00033698,5]
[361841086,1747828245411,-834.6,0.00033698,5]
[361841087,1747828245421,-420.0,0.00033698,5]
[361841088,1747828245431,-420.0,0.00033698,5]
[361841089,1747828245441,-406.62,0.00033698,5]
[361841090,1747828245451,-420.0,0.00033698,5]
[361841091,1747828245460,-1944.05,0.00033698,5]
[361841092,1747828245470,-445.9,0.00033698,5]
[361841093,1747828245479,-521.33,0.00033698,5]
[361841094,1747828245488,-3204.8,0.00033698,5]
[361841095,1747828245497,-420.0,0.00033698,5]
[361841096,1747828245507,-420.0,0.00033698,5]
[361841097,1747828245517,-420.0,0.00033698,5]
[361841098,1747828245526,-393.09,0.00033698,5]
[361841099,1747828245535,-420.0,0.00033698,5]
[361841100,1747828245545,-476.15,0.00033698,5]
[361841101,1747828245555,-420.0,0.00033698,5]
[361841102,1747828245567,-420.0,0.00033698,5]
[361841103,1747828245578,-420.0,0.00033698,5]
[361841104,1747828245588,-420.0,0.00033698,5]
[361841105,1747828245599,-420.0,0.00033698,5]
[361841106,1747828245609,-211.02,0.00033698,5]
[361841107,1747828245621,-420.0,0.00033698,5]
[361841108,1747828245631,-420.0,0.00033698,5]
[361841109,1747828245641,-420.0,0.00033698,2]
[361841110,1747828245652,-420.0,0.00033698,5]
[361841111,1747828245662,-420.0,0.00033698,5]
[361841112,1747828245672,-420.0,0.00033698,5]
[361841113,1747828245683,-420.0,0.00033698,5]
[361841114,1747828245693,-420.0,0.00033698,5]
[361841115,1747828245703,-420.0,0.00033698,5]
[361841116,1747828245714,-420.0,0.00033698,5]
[361841117,1747828245724,-420.0,0.00033698,5]
[361841118,1747828245734,-737.12,0.00033698,5]
[361841119,1747828245744,-420.0,0.00033698,5]
[361841120,1747828245755,-420.0,0.00033698,5]
[361841121,1747828245764,-420.0,0.00033698,5]
[361841122,1747828245774,-476.15,0.00033698,5]
[361841123,1747828245784,-420.0,0.00033698,5]
[361841124,1747828245794,-420.0,0.00033698,5]
[361841125,1747828245804,-420.0,0.00033698,5]
[361841126,1747828245814,-420.0,0.00033698,5]
[361841127,1747828245824,-420.0,0.00033698,5]
[361841128,1747828245834,-5048.72,0.00033698,5]
[361841129,1747828245844,-221.21,0.00033698,5]
[361841130,1747828245853,-420.0,0.00033698,5]
[361841131,1747828245863,-880.48,0.00033698,5]
[361841132,1747828245873,-420.0,0.00033698,5]
[361841133,1747828245884,-420.0,0.00033698,5]
[361841134,1747828245893,-420.0,0.00033698,5]
[361841135,1747828245904,-420.0,0.00033698,5]
[361841136,1747828245913,-715.23,0.00033698,5]
[361841137,1747828245923,-250.0,0.00033805,2]
[361841138,1747828245932,-7158.99701503,0.00033935,3]
[361841139,1747828245943,-1624.20225934,0.00033945,30]
[361841140,1747828245954,-7158.99701503,0.00033952,3]
[361841141,1747828245964,-14317.9940301,0.00033962,3]
[361841142,1747828245974,-420.0,0.00033972,5]
[361841143,1747828245984,-420.0,0.00033972,5]
[361841144,1747828245994,-206.42,0.00033972,5]
[361841145,1747828246004,-420.0,0.00033972,5]
[361841146,1747828246014,-420.0,0.00033972,5]
[361841148,1747828246024,-420.0,0.00033972,5]
[361841150,1747828246034,-503.66,0.00033972,5]
[361841152,1747828246043,-646.58,0.00033972,5]
[361841153,1747828246053,-420.0,0.00033972,5]
[361841154,1747828246063,-424.44,0.00033972,5]
[361841156,1747828246073,-420.0,0.00033972,5]
[361841157,1747828246083,-420.0,0.00033972,5]
[361841158,1747828246096,-420.0,0.00033972,5]
[361841159,1747828246107,-420.0,0.00033972,5]
[361841160,1747828246117,-420.0,0.00033972,5]
[361841161,1747828246127,-834.6,0.00033972,5]
[361841162,1747828246136,-376.82,0.00033972,5]
[361841163,1747828246145,-420.0,0.00033972,5]
[361841164,1747828246156,-393.72,0.00033972,5]
[361841165,1747828246167,-1944.05,0.00033972,5]
[361841166,1747828246177,-445.9,0.00033972,5]
[361841168,1747828246187,-3204.8,0.00033972,5]
[361841170,1747828246197,-420.0,0.00033972,5]
[361841171,1747828246206,-420.0,0.00033972,5]
[361841172,1747828246216,-420.0,0.00033972,5]
[361841173,1747828246225,-420.0,0.00033972,5]
[361841174,1747828246235,-420.0,0.00033972,5]
[361841175,1747828246245,-331.31,0.00033972,5]
[361841176,1747828246255,-541.26,0.00033972,5]
[361841177,1747828246265,-420.0,0.00033972,5]
[361841178,1747828246275,-420.0,0.00033972,5]
[361841179,1747828246285,-420.0,0.00033972,5]
[361841180,1747828246295,-420.0,0.00033972,5]
[361841181,1747828246304,-420.0,0.00033972,2]